fUST/lending_fUST_20240501
["ID","MTS","AMOUNT","RATE_DAILY","PERIOD"]
[325182512,1714552239310,-696.92709456,0.00019078,2]
[325182514,1714552239319,-257.96284001,0.00019178,2]
[325182517,1714552239332,-267.32128995,0.00019178,2]
[325182519,1714552239342,-627.86419117,0.00019178,2]
[325182520,1714552239351,-282.81102246,0.00019178,2]
[325182521,1714552239360,-500.0,0.00019178,2]
[325182522,1714552239369,-642.15453765,0.00019178,2]
[325182523,1714552239377,-500.0,0.00019178,2]
[325182524,1714552239387,-500.0,0.00019178,2]
[325182525,1714552239396,-500.0,0.00019178,2]
[325182526,1714552239405,-500.0,0.00019178,2]
[325182527,1714552239414,-390.10449217,0.00019178,2]
[325182528,1714552239423,-500.0,0.00019178,2]
[325182529,1714552239432,-500.0,0.00019178,2]
[325182530,1714552239442,-500.0,0.00019178,2]
[325182531,1714552239451,-604.6341814,0.00019178,2]
[325182532,1714552239460,-576.93331701,0.00019178,2]
[325182533,1714552239469,-500.0,0.00019178,2]
[325182534,1714552239478,-500.0,0.00019178,2]
[325182535,1714552239487,-500.0,0.00019178,2]
[325182536,1714552239496,-161.032701,0.00019178,2]
[325182537,1714552239506,-160.5902257,0.00019178,2]
[325182538,1714552239514,-483.59455737,0.0002,4]
[325182539,1714552239523,-67435.2931103,0.0002,2]
[325182540,1714552239532,-241.74656629,0.0002,2]
[325182541,1714552239541,-155.41876208,0.0002,2]
[325182542,1714552239550,-91260.53876731,0.0002,2]
[325182543,1714552239559,-330.04006716,0.0002,2]
[325182545,1714552239568,-5461.4995396,0.0002,2]
[325182547,1714552239578,-80000.0,0.0002,2]
[325182549,1714552239586,-155.02548339,0.0002,2]
[325182551,1714552239596,-400.0,0.0002,2]
[325182553,1714552239605,-320.65450041,0.0002,2]
[325182555,1714552239615,-278.30883524,0.0002,2]
[325182557,1714552239624,-152.02445036,0.0002,2]
[325182559,1714552239633,-200.0,0.0002,2]
[325182561,1714552239642,-3000.0,0.00020547,2]
[325182563,1714552239651,-3000.0,0.00020547,2]
[325182565,1714552239661,-3000.0,0.00020547,2]
[325182567,1714552239669,-3000.0,0.00020547,2]
[325182569,1714552239678,-3000.0,0.00020547,2]
[325182571,1714552239687,-3000.0,0.00020547,2]
[325182573,1714552239697,-3000.0,0.00020547,2]
[325182575,1714552239706,-3000.0,0.00020547,2]
[325182577,1714552239715,-3000.0,0.00020547,2]
[325182579,1714552239724,-517.958247,0.00020548,2]
[325182581,1714552239733,-3000.0,0.00020998,2]
[325182583,1714552239744,-3000.0,0.00020998,2]
[325182585,1714552239752,-44298.12402969,0.00020999,2]
[325182587,1714552239761,-10000.0,0.00021918,2]
[325182589,1714552239770,-166.666666,0.00021918,2]
[325182591,1714552239779,-454.73,0.00021918,2]
[325182593,1714552239789,-378.94,0.00021918,2]
[325182595,1714552239798,-315.78,0.00021918,2]
[325182597,1714552239807,-263.15,0.00021918,2]
[325182599,1714552239816,-219.29,0.00021918,2]
[325182601,1714552239827,-182.74,0.00021918,2]
[325182604,1714552239836,-152.29,0.00021918,2]
[325182605,1714552239846,-761.46,0.00021918,2]
[325182607,1714552239855,-159.24114282,0.00022,2]
[325182609,1714552239865,-166.666666,0.00022431,2]
[325182611,1714552239877,-166.666666,0.00022944,2]
[325182612,1714552239886,-714.26625523,0.00023,2]
[325182613,1714552239895,-620.00000006,0.00023408,2]
[325182615,1714552239904,-166.666666,0.00023456,2]
[325182616,1714552239913,-3784.26507766,0.000239,2]
[325182618,1714552239922,-166.666666,0.00023969,2]
[325182620,1714552239931,-693.57389158,0.00024,2]
[325182622,1714552239941,-166.666666,0.00024482,2]
[325182624,1714552239950,-620.0,0.00024578,2]
[325182625,1714552239959,-180.2298124,0.00024658,2]
[325182627,1714552239968,-154.76784823,0.00025,2]
[325182629,1714552239978,-696.92709452,0.00025534,2]
[325182630,1714552239987,-620.0,0.00025807,2]
[325182632,1714552239997,-1615.1467,0.000266,2]
[325182634,1714552240006,-8530.80720591,0.00027,2]
[325182636,1714552240015,-620.0,0.00027098,2]
[325182638,1714552240024,-1000.0,0.00027397,30]
[325182640,1714552240033,-1000.0,0.00027397,30]
[325182642,1714552240043,-1000.0,0.00027397,30]
[325182644,1714552240054,-1000.0,0.00027397,30]
[325182646,1714552240063,-1000.0,0.00027397,30]
[325182648,1714552240073,-1002.62036937,0.00027397,30]
[325182650,1714552240086,-220.96622212,0.00028,2]
[325182652,1714552240095,-620.0,0.00028453,2]
[325182654,1714552240107,-3784.26507766,0.000289,2]
[325182656,1714552240115,-410.47063384,0.00029173,2]
[325182658,1714552240124,-620.0,0.00029875,2]
[325182660,1714552240133,-150.0,0.00029999,2]
[325182662,1714552240143,-1751.78944315,0.0003,7]
[325182664,1714552240154,-3723.00911832,0.0003,4]
[325182666,1714552240164,-150.0,0.00030999,2]
[325182668,1714552240174,-6438.56290167,0.00031,4]
[325182670,1714552240183,-620.0,0.00031369,2]
[325182672,1714552240192,-696.92709452,0.00031989,2]
[325182674,1714552240202,-447.2209758,0.00032,4]
[325182676,1714552240211,-3000.0,0.00032875,10]
[325182678,1714552240220,-3528.67,0.00032876,7]
[325182680,1714552240229,-3528.67,0.00032876,10]
[325182682,1714552240238,-3528.67,0.00032876,13]
[325182684,1714552240247,-3528.67,0.00032876,16]
[325182686,1714552240257,-3528.67,0.00032876,19]
[325182688,1714552240266,-3528.67,0.00032876,22]
[325182690,1714552240276,-3528.67,0.00032876,25]
[325182691,1714552240284,-3528.67,0.00032876,28]
[325182694,1714552240294,-3528.67,0.00032876,31]
[325182695,1714552240304,-3528.67,0.00032876,34]
[325182698,1714552240314,-3528.67,0.00032876,37]
[325182700,1714552240323,-3528.67,0.00032876,40]
[325182702,1714552240340,-3528.67,0.00032876,43]
[325182704,1714552240349,-3528.67,0.00032876,46]
[325182706,1714552240358,-3528.67,0.00032876,49]
[325182707,1714552240368,-466.46671286,0.00034,4]
[325182709,1714552240377,-1608.78436868,0.00034,60]
[325182711,1714552240386,-1000.0,0.000348,3]
[325182713,1714552240396,-3528.67,0.00034999,52]
[325182716,1714552240406,-3025.94442038,0.00034999,10]
[325182717,1714552240415,-854.25779961,0.00035,2]
[325182720,1714552240425,-1226.97473075,0.00035,30]
[325182721,1714552240434,-1753.71255042,0.00035,30]
[325182724,1714552240443,-214.65163076,0.00035,4]
[325182726,1714552240454,-425.45157815,0.00035,10]
[325182728,1714552240464,-5917.45193267,0.00035,4]
[325182729,1714552240473,-823.112466,0.00035616,120]
[325182731,1714552240482,-150.72868836,0.00035801,2]
[325182733,1714552240490,-5000.0,0.00036,4]
[325182735,1714552240499,-161.032701,0.00036301,2]
[325182737,1714552240508,-301.45737672,0.00036402,4]
[325182739,1714552240518,-3528.67,0.00036999,55]
[325182742,1714552240530,-10664.09300882,0.00037,5]
[325182744,1714552240539,-2049.08470554,0.00037,2]
[325182746,1714552240548,-602.91475344,0.00037014,7]
[325182748,1714552240557,-1205.82950689,0.00037951,30]
[325182749,1714552240566,-239.19602788,0.00038,30]
[325182751,1714552240580,-900.0,0.00038,120]
[325182753,1714552240589,-696.92709452,0.00038445,2]
[325182756,1714552240599,-1593.9,0.00038696,3]
[325182758,1714552240608,-607.91840391,0.0004,2]
[325182759,1714552240617,-2000.0,0.0004,120]
[325182762,1714552240626,-233.10811646,0.0004,15]
[325182764,1714552240636,-379.12648785,0.00041,2]
[325182766,1714552240646,-1007.951808,0.000412,38]
[325182767,1714552240655,-823.112466,0.00041553,120]
[325182770,1714552240666,-1000.0,0.000417,38]
[325182771,1714552240675,-1000.0,0.000422,38]
[325182774,1714552240685,-154.76784823,0.0004234,10]
[325182775,1714552240694,-261.71766042,0.00042395,4]
[325182777,1714552240707,-707.86432756,0.00042395,4]
[325182779,1714552240716,-404.01902075,0.00042395,4]
[325182782,1714552240725,-5626.62531571,0.00042395,4]
[325182784,1714552240735,-301.99797948,0.00042395,4]
[325182786,1714552240744,-258.90142029,0.00042395,4]
[325182788,1714552240753,-1057.38177635,0.00042395,4]
[325182790,1714552240762,-155.61648785,0.00042395,4]
[325182792,1714552240771,-158.56399882,0.00042395,4]
[325182794,1714552240781,-171.76383685,0.00042396,4]
[325182795,1714552240790,-1695.41656809,0.000425,30]
[325182797,1714552240799,-152.93454489,0.00043546,30]
[325182799,1714552240808,-6078.54,0.00044379,7]
[325182801,1714552240817,-6078.54,0.00044379,7]
[325182803,1714552240829,-6078.54,0.00044379,7]
[325182805,1714552240838,-6078.54,0.00044379,7]
[325182807,1714552240847,-6078.54,0.00044379,7]
[325182809,1714552240855,-6078.54,0.00044379,7]
[325182811,1714552240865,-6078.54,0.00044379,7]
[325182813,1714552240873,-6078.54,0.00044379,7]
[325182815,1714552240882,-6078.54,0.00044379,7]
[325182817,1714552240891,-6078.54,0.00044379,7]
[325182819,1714552240901,-164.04387465,0.0004438,43]
[325182821,1714552240910,-164.04387465,0.0004438,43]
[325182823,1714552240920,-164.04387465,0.0004438,43]
[325182825,1714552240929,-148165.70876152,0.0004438,30]
[325182827,1714552240944,-373054.02851848,0.0004438,30]
[325182829,1714552240954,-696.92709452,0.000449,2]
[325182832,1714552240963,-1520.24750243,0.00045,4]
[325182833,1714552240973,-155.91384571,0.00045093,30]
[325182836,1714552240982,-154.76784823,0.000459,4]
[325182838,1714552240992,-823.112466,0.00047489,120]
[325182839,1714552241001,-3528.67,0.00048999,58]
[325182840,1714552241010,-7006.14330541,0.00049,120]
[325182841,1714552241019,-183.733312,0.00049863,2]
[325182843,1714552241029,-419.506312,0.00049863,2]
[325182845,1714552241038,-154.76784823,0.0005,30]
[325182847,1714552241047,-8562.38280706,0.0005,120]
[325182848,1714552241058,-995.56871615,0.0005,15]
[325182850,1714552241068,-7657.46952553,0.0005,4]
[325182852,1714552241080,-960.60835228,0.0005,60]
[325182854,1714552241089,-2000.0,0.0005,120]
[325182856,1714552241099,-306.0,0.00050054,2]
[325182857,1714552241109,-153.0,0.00050054,2]
[325182858,1714552241118,-153.0,0.00050054,2]
[325182859,1714552241128,-153.0,0.00050054,2]
[325182860,1714552241137,-153.0,0.00050054,2]
[325182861,1714552241146,-153.0,0.00050054,2]
[325182862,1714552241160,-306.0,0.00050054,2]
[325182863,1714552241169,-715.70053938,0.00050922,60]
[325182864,1714552241179,-3000.0,0.00051,85]
[325182865,1714552241188,-3000.0,0.0005101,85]
[325182866,1714552241197,-3000.0,0.0005102,85]
[325182867,1714552241207,-3000.0,0.0005103,85]
[325182868,1714552241216,-3000.0,0.0005104,85]
[325182869,1714552241226,-3528.67,0.00051049,120]
[325182870,1714552241235,-3000.0,0.0005105,85]
[325182871,1714552241243,-3000.0,0.0005106,85]
[325182872,1714552241252,-5484.959741,0.0005107,85]
[325182873,1714552241262,-274.46857096,0.00051162,60]
[325182874,1714552241271,-274.46857096,0.00051212,60]
[325182875,1714552241280,-274.46857096,0.00051912,60]
[325182876,1714552241289,-161.032701,0.00053425,2]
[325182877,1714552241299,-823.112466,0.00053425,120]
[325182878,1714552241308,-150.72868836,0.00053701,2]
[325182879,1714552241318,-183.733312,0.00054448,2]
[325182880,1714552241328,-419.506312,0.00054448,2]
[325182881,1714552241338,-500.0,0.00054794,120]
[325182882,1714552241347,-500.0,0.00054794,120]
[325182883,1714552241356,-500.0,0.00054794,120]
[325182884,1714552241366,-500.0,0.00054794,120]
[325182885,1714552241375,-500.0,0.00054794,120]
[325182886,1714552241384,-500.0,0.00054794,120]
[325182887,1714552241394,-404.46,0.00054794,120]
[325182888,1714552241404,-1306.78937536,0.000558,4]
[325182889,1714552241413,-277.87444612,0.0005589,30]
[325182890,1714552241422,-151.23601476,0.00056533,60]
[325182891,1714552241432,-3528.67,0.00057532,120]
[325182892,1714552241441,-3528.67,0.00057532,120]
[325182893,1714552241450,-3528.67,0.00057532,120]
[325182894,1714552241459,-3528.67,0.00057532,120]
[325182895,1714552241469,-3528.825956,0.00057532,120]
[325182896,1714552241478,-150.0,0.00057533,60]
[325182897,1714552241488,-500.0,0.00057534,120]
[325182898,1714552241496,-500.0,0.00057534,120]
[325182899,1714552241505,-500.0,0.00057534,120]
[325182900,1714552241514,-1107.09,0.00057534,120]
[325182901,1714552241523,-849.03,0.00057534,120]
[325182902,1714552241532,-500.0,0.00057534,120]
[325182903,1714552241541,-500.0,0.00057534,30]
[325182904,1714552241550,-500.0,0.00057534,120]
[325182905,1714552241559,-500.0,0.00057534,120]
[325182906,1714552241568,-500.0,0.00057534,120]
[325182907,1714552241578,-500.90495876,0.00057534,120]
[325182908,1714552241588,-500.0,0.00057534,120]
[325182909,1714552241597,-500.0,0.00057534,120]
[325182910,1714552241606,-500.0,0.00057534,120]
[325182911,1714552241615,-500.0,0.00057534,120]
[325182912,1714552241625,-500.0,0.00057534,120]
[325182913,1714552241634,-500.0,0.00057534,120]
[325182914,1714552241643,-500.0,0.00057534,120]
[325182915,1714552241652,-500.0,0.00057534,120]
[325182916,1714552241661,-500.0,0.00057534,120]
[325182917,1714552241671,-824.75,0.00057534,120]
[325182918,1714552241679,-500.0,0.00057534,120]
[325182919,1714552241689,-500.0,0.00057534,120]
[325182920,1714552241698,-825.98,0.00057534,120]
[325182921,1714552241706,-196.88553601,0.00057534,7]
[325182922,1714552241715,-500.0,0.00057534,120]
[325182923,1714552241724,-500.0,0.00057534,120]
[325182924,1714552241733,-500.0,0.00057534,120]
[325182925,1714552241741,-500.0,0.00057534,120]
[325182926,1714552241750,-1000.0,0.00057534,120]
[325182927,1714552241759,-500.0,0.00057534,120]
[325182928,1714552241769,-500.0,0.00057534,120]
[325182929,1714552241778,-500.0,0.00057534,120]
[325182930,1714552241787,-500.0,0.00057534,120]
[325182931,1714552241796,-500.0,0.00057534,120]
[325182932,1714552241805,-500.0,0.00057534,120]
[325182933,1714552241814,-500.0,0.00057534,120]
[325182934,1714552241823,-1267.43,0.00057534,120]
[325182935,1714552241834,-500.0,0.00057534,120]
[325182936,1714552241843,-500.0,0.00057534,120]
[325182937,1714552241852,-500.0,0.00057534,120]
[325182938,1714552241861,-604.5924382,0.00057534,120]
[325182939,1714552241871,-500.0,0.00057534,120]
[325182940,1714552241880,-500.0,0.00057534,120]
[325182941,1714552241889,-415.0786147,0.00057534,120]
[325182942,1714552241898,-500.0,0.00057534,120]
[325182943,1714552241907,-794.63,0.00057534,120]
[325182944,1714552241916,-500.0,0.00057534,7]
[325182945,1714552241925,-500.0,0.00057534,120]
[325182946,1714552241934,-500.0,0.00057534,120]
[325182947,1714552241943,-500.0,0.00057534,120]
[325182948,1714552241952,-500.0,0.00057534,120]
[325182949,1714552241961,-500.0,0.00057534,120]
[325182950,1714552241971,-500.0,0.00057534,120]
[325182951,1714552241981,-500.0,0.00057534,120]
[325182952,1714552241991,-500.0,0.00057534,120]
[325182953,1714552242000,-500.0,0.00057534,120]
[325182954,1714552242009,-500.0,0.00057534,120]
[325182955,1714552242019,-500.0,0.00057534,120]
[325182956,1714552242028,-500.0,0.00057534,120]
[325182957,1714552242038,-500.0,0.00057534,120]
[325182958,1714552242047,-500.0,0.00057534,120]
[325182959,1714552242062,-500.0,0.00057534,120]
[325182960,1714552242072,-500.0,0.00057534,120]
[325182961,1714552242086,-500.0,0.00057534,120]
[325182962,1714552242095,-500.0,0.00057534,120]
[325182963,1714552242105,-500.0,0.00057534,120]
[325182964,1714552242115,-616.29905488,0.00057534,120]
[325182965,1714552242125,-500.0,0.00057534,120]
[325182966,1714552242135,-500.0,0.00057534,120]
[325182967,1714552242144,-500.0,0.00057534,120]
[325182968,1714552242156,-500.0,0.00057534,120]
[325182969,1714552242166,-500.0,0.00057534,120]
[325182970,1714552242176,-1373.47,0.00057534,120]
[325182971,1714552242186,-500.0,0.00057534,2]
[325182972,1714552242195,-500.0,0.00057534,120]
[325182973,1714552242204,-500.0,0.00057534,120]
[325182974,1714552242212,-500.0,0.00057534,120]
[325182975,1714552242222,-500.44286462,0.00057534,120]
[325182976,1714552242230,-500.0,0.00057534,120]
[325182977,1714552242239,-500.0,0.00057534,120]
[325182978,1714552242249,-625.73595887,0.00057534,120]
[325182979,1714552242257,-500.0,0.00057534,120]
[325182980,1714552242266,-500.0,0.00057534,120]
[325182981,1714552242275,-500.0,0.00057534,120]
[325182982,1714552242285,-500.0,0.00057534,120]
[325182983,1714552242294,-568.81,0.00057534,120]
[325182984,1714552242304,-500.0,0.00057534,120]
[325182985,1714552242314,-500.0,0.00057534,120]
[325182986,1714552242323,-500.0,0.00057534,120]
[325182987,1714552242336,-651.58,0.00057534,120]
[325182988,1714552242346,-500.0,0.00057534,120]
[325182989,1714552242354,-581.74,0.00057534,120]
[325182990,1714552242363,-1531.84,0.00057534,120]
[325182991,1714552242374,-500.0,0.00057534,120]
[325182992,1714552242383,-500.0,0.00057534,120]
[325182993,1714552242392,-500.0,0.00057534,120]
[325182994,1714552242401,-500.0,0.00057534,120]
[325182995,1714552242410,-500.0,0.00057534,120]
[325182996,1714552242419,-1856.74,0.00057534,120]
[325182997,1714552242429,-500.0,0.00057534,120]
[325182998,1714552242440,-1351.62,0.00057534,120]
[325182999,1714552242449,-500.0,0.00057534,120]
[325183000,1714552242459,-500.0,0.00057534,120]
[325183001,1714552242470,-500.0,0.00057534,120]
[325183002,1714552242479,-500.0,0.00057534,120]
[325183003,1714552242488,-500.0,0.00057534,120]
[325183005,1714552242497,-539.12,0.00057534,120]
[325183006,1714552242506,-500.0,0.00057534,120]
[325183007,1714552242515,-500.0,0.00057534,120]
[325183008,1714552242524,-500.0,0.00057534,120]
[325183009,1714552242533,-2371.63,0.00057534,2]
[325183010,1714552242542,-500.0,0.00057534,120]
[325183011,1714552242552,-500.0,0.00057534,120]
[325183012,1714552242561,-500.0,0.00057534,120]
[325183013,1714552242570,-503.02145497,0.00057534,120]
[325183014,1714552242582,-592.65,0.00057534,120]
[325183036,1714552242736,-500.0,0.00057534,120]
[325183037,1714552242746,-3030.17,0.00057534,120]
[325183038,1714552242756,-500.0,0.00057534,120]
[325183039,1714552242765,-500.0,0.00057534,120]
[325183040,1714552242775,-502.21685229,0.00057534,120]
[325183042,1714552242784,-1396.91,0.00057534,120]
[325183044,1714552242793,-735.61,0.00057534,120]
[325183047,1714552242803,-500.0,0.00057534,120]
[325183050,1714552242812,-500.0,0.00057534,60]
[325183052,1714552242822,-500.0,0.00057534,120]
[325183055,1714552242835,-1542.77,0.00057534,120]
[325183059,1714552242845,-1133.29,0.00057534,120]
[325183063,1714552242854,-500.0,0.00057534,120]
[325183068,1714552242864,-500.0,0.00057534,120]
[325183073,1714552242873,-500.0,0.00057534,120]
[325183076,1714552242883,-1295.57,0.00057534,120]
[325183080,1714552242893,-500.0,0.00057534,120]
[325183084,1714552242903,-500.0,0.00057534,120]
[325183087,1714552242912,-770.4,0.00057534,120]
[325183090,1714552242922,-1541.8,0.00057534,120]
[325183091,1714552242932,-679.79,0.00057534,120]
[325183093,1714552242941,-500.0,0.00057534,120]
[325183094,1714552242951,-624.41,0.00057534,120]
[325183098,1714552242961,-500.0,0.00057534,120]
[325183100,1714552242971,-988.81,0.00057534,120]
[325183103,1714552242981,-549.28,0.00057534,120]
[325183107,1714552242992,-500.0,0.00057534,120]
[325183108,1714552243002,-500.0,0.00057534,120]
[325183110,1714552243011,-500.0,0.00057534,120]
[325183113,1714552243021,-500.0,0.00057534,120]
[325183115,1714552243032,-500.0,0.00057534,120]
[325183118,1714552243042,-500.89891223,0.00057534,120]
[325183122,1714552243052,-500.0,0.00057534,120]
[325183126,1714552243062,-500.0,0.00057534,120]
[325183127,1714552243072,-500.0,0.00057534,120]
[325183131,1714552243089,-1264.84,0.00057534,120]
[325183137,1714552243100,-4427.08,0.00057534,120]
[325183139,1714552243109,-500.0,0.00057534,120]
[325183142,1714552243120,-500.0,0.00057534,120]
[325183146,1714552243130,-778.85,0.00057534,120]
[325183151,1714552243140,-500.0,0.00057534,120]
[325183155,1714552243150,-237.09528617,0.00057534,120]
[325183159,1714552243161,-500.0,0.00057534,120]
[325183162,1714552243171,-503.96709875,0.00057534,120]
[325183166,1714552243180,-500.0,0.00057534,120]
[325183168,1714552243189,-500.0,0.00057534,120]
[325183171,1714552243199,-500.0,0.00057534,120]
[325183172,1714552243207,-500.0,0.00057534,120]
[325183174,1714552243215,-500.0,0.00057534,120]
[325183176,1714552243224,-500.0,0.00057534,120]
[325183179,1714552243233,-500.0,0.00057534,120]
[325183181,1714552243243,-498.24132212,0.00057534,120]
[325183183,1714552243252,-500.0,0.00057534,120]
[325183185,1714552243260,-500.0,0.00057534,120]
[325183187,1714552243269,-500.0,0.00057534,120]
[325183189,1714552243278,-674.53,0.00057534,120]
[325183191,1714552243288,-500.0,0.00057534,120]
[325183193,1714552243297,-500.0,0.00057534,120]
[325183194,1714552243307,-500.0,0.00057534,120]
[325183195,1714552243317,-500.0,0.00057534,120]
[325183196,1714552243326,-500.0,0.00057534,120]
[325183197,1714552243340,-500.0,0.00057534,120]
[325183198,1714552243349,-500.0,0.00057534,120]
[325183199,1714552243358,-2651.56,0.00057534,120]
[325183200,1714552243367,-500.0,0.00057534,120]
[325183201,1714552243376,-500.0,0.00057534,120]
[325183202,1714552243386,-500.0,0.00057534,120]
[325183203,1714552243395,-500.0,0.00057534,120]
[325183204,1714552243404,-500.0,0.00057534,120]
[325183205,1714552243413,-500.0,0.00057534,120]
[325183206,1714552243422,-504.86096906,0.00057534,120]
[325183207,1714552243431,-284.10178284,0.00057534,120]
[325183208,1714552243441,-500.0,0.00057534,120]
[325183209,1714552243450,-9791.1,0.00057534,120]
[325183210,1714552243460,-500.0,0.00057534,120]
[325183211,1714552243469,-694.99,0.00057534,21]
[325183212,1714552243478,-500.0,0.00057534,120]
[325183213,1714552243488,-500.0,0.00057534,120]
[325183214,1714552243497,-500.0,0.00057534,120]
[325183215,1714552243506,-500.98148124,0.00057534,120]
[325183216,1714552243516,-500.0,0.00057534,120]
[325183217,1714552243526,-5931.5,0.00057534,120]
[325183218,1714552243535,-500.0,0.00057534,120]
[325183219,1714552243544,-500.0,0.00057534,120]
[325183220,1714552243554,-505.66976051,0.00057534,120]
[325183221,1714552243563,-500.0,0.00057534,120]
[325183222,1714552243571,-500.0,0.00057534,120]
[325183223,1714552243581,-500.0,0.00057534,120]
[325183224,1714552243591,-500.0,0.00057534,120]
[325183225,1714552243600,-500.0,0.00057534,120]
[325183226,1714552243610,-500.0,0.00057534,120]
[325183227,1714552243620,-24223.23,0.00057534,120]
[325183228,1714552243629,-500.0,0.00057534,120]
[325183229,1714552243640,-1061.7,0.00057534,120]
[325183230,1714552243649,-1953.05,0.00057534,120]
[325183231,1714552243658,-505.05790839,0.00057534,120]
[325183232,1714552243667,-500.0,0.00057534,120]
[325183233,1714552243676,-500.0,0.00057534,120]
[325183234,1714552243685,-500.0,0.00057534,120]
[325183235,1714552243694,-500.0,0.00057534,120]
[325183236,1714552243703,-739.9,0.00057534,120]
[325183238,1714552243713,-500.0,0.00057534,120]
[325183240,1714552243722,-500.0,0.00057534,120]
[325183242,1714552243731,-500.0,0.00057534,120]
[325183244,1714552243740,-1352.74,0.00057534,120]
[325183245,1714552243749,-500.0,0.00057534,120]
[325183246,1714552243758,-500.0,0.00057534,120]
[325183247,1714552243766,-629.51,0.00057534,2]
[325183249,1714552243776,-500.0,0.00057534,120]
[325183251,1714552243786,-500.0,0.00057534,120]
[325183253,1714552243795,-500.0,0.00057534,120]
[325183254,1714552243804,-500.0,0.00057534,120]
[325183255,1714552243813,-500.0,0.00057534,120]
[325183256,1714552243822,-500.0,0.00057534,120]
[325183257,1714552243834,-500.0,0.00057534,120]
[325183258,1714552243843,-500.0,0.00057534,120]
[325183259,1714552243852,-500.0,0.00057534,120]
[325183260,1714552243861,-500.0,0.00057534,120]
[325183261,1714552243870,-566.07135066,0.00057534,120]
[325183262,1714552243879,-1519.49,0.00057534,120]
[325183263,1714552243888,-500.0,0.00057534,120]
[325183264,1714552243898,-2316.76,0.00057534,120]
[325183265,1714552243907,-5982.13,0.00057534,120]
[325183266,1714552243917,-500.0,0.00057534,120]
[325183267,1714552243927,-500.0,0.00057534,120]
[325183268,1714552243935,-500.0,0.00057534,120]
[325183269,1714552243944,-500.0,0.00057534,120]
[325183270,1714552243954,-509.55728924,0.00057534,120]
[325183271,1714552243963,-500.0,0.00057534,120]
[325183272,1714552243972,-500.0,0.00057534,120]
[325183273,1714552243981,-500.0,0.00057534,120]
[325183274,1714552243990,-497.69244732,0.00057534,120]
[325183275,1714552243999,-638.25023112,0.00057534,120]
[325183276,1714552244008,-2826.83,0.00057534,120]
[325183277,1714552244018,-816.41,0.00057534,120]
[325183278,1714552244026,-500.0,0.00057534,120]
[325183279,1714552244035,-500.0,0.00057534,120]
[325183280,1714552244044,-500.0,0.00057534,120]
[325183281,1714552244054,-500.0,0.00057534,120]
[325183282,1714552244064,-500.0,0.00057534,120]
[325183283,1714552244077,-500.0,0.00057534,120]
[325183284,1714552244090,-500.0,0.00057534,120]
[325183285,1714552244101,-837.47,0.00057534,120]
[325183286,1714552244110,-500.0,0.00057534,120]
[325183287,1714552244120,-500.0,0.00057534,120]
[325183288,1714552244130,-500.0,0.00057534,120]
[325183289,1714552244140,-500.0,0.00057534,120]
[325183290,1714552244150,-500.0,0.00057534,120]
[325183291,1714552244160,-500.0,0.00057534,120]
[325183292,1714552244169,-500.0,0.00057534,120]
[325183293,1714552244178,-500.0,0.00057534,120]
[325183294,1714552244188,-500.0,0.00057534,120]
[325183295,1714552244197,-500.0,0.00057534,120]
[325183296,1714552244207,-500.0,0.00057534,120]